bitfinex-derivatives/quotes_SOLF0:USTF0_20240924
["timestamp","ask_amount","ask_price","bid_price","bid_amount"]
[1727151637800,3.45637583,146.16,146.11,9.45]
[1727151638002,9.45,146.18,146.13,9.45]
[1727151638206,3.38720723,146.17,146.13,9.45]
[1727151638405,3.4215,146.14,146.13,9.45]
[1727151639209,3.4215,146.14,146.1,3.4223]
[1727151639210,3.4215,146.14,146.12,9.45]
[1727151639603,3.4217,146.13,146.12,9.45]
[1727151641110,3.4217,146.13,146.09,3.4226]
[1727151641315,3.4216,146.14,146.12,9.45]
[1727151643014,3.4217,146.13,146.12,9.45]
[1727151654623,9.45,146.13,145.95,312.16]
[1727151654811,9.45,146.14,146.09,9.45]
[1727151655319,9.45,146.15,146.02,4.125]
[1727151655619,3.4223,146.11,146.1,9.45]
[1727151657716,3.4221,146.12,146.1,9.45]
[1727151657922,3.4221,146.12,146.11,9.45]
[1727151659526,3.4223,146.11,146.08,3.4229]
[1727151659828,15.65536355,146.16,146.1,9.45]
[1727151660015,3.4221,146.12,146.1,9.45]
[1727151660423,6.8401,146.21,146.11,9.45]
[1727151660623,3.4214,146.15,146.09,3.49085679]
[1727151660821,3.4214,146.15,146.14,9.45]
[1727151666627,3.4212,146.16,146.14,9.45]
[1727151667329,3.4213,146.15,146.14,9.45]
[1727151668730,3.4215,146.14,146.13,9.45]
[1727151669929,9.45,146.16,146.1,4.1019]
[1727151670131,9.45,146.16,146.11,9.45]
[1727151670532,3.4221,146.12,146.06,92.91854258]
[1727151670727,9.45,146.14,146.06,92.91854258]
[1727151670928,9.45,146.14,146.09,9.45]
[1727151671437,3.4224,146.11,146.09,9.45]
[1727151673234,3.4221,146.12,146.09,12.8726]
[1727151674235,9.45,146.14,146.1,9.45]
[1727151674832,9.45,146.14,146.06,92.91854258]
[1727151674833,3.46103807,146.16,146.11,9.45]
[1727151675035,13.6247,146.17,146.13,9.45]
[1727151675328,3.4216,146.14,146.13,9.45]
[1727151677130,3.4214,146.15,146.13,9.45]
[1727151677323,3.4214,146.15,146.14,9.45]
[1727151677822,3.4211,146.16,146.14,9.45]
[1727151678331,3.4213,146.15,146.14,9.45]
[1727151678529,9.45,146.18,146.1,2.7768]
[1727151678729,9.45,146.18,146.13,9.45]
[1727151679035,3.4215,146.14,146.13,9.45]
[1727151679532,3.4212,146.16,146.13,12.8716]
[1727151679736,3.4212,146.16,146.15,9.45]
[1727151683038,3.4206,146.18,146.15,12.8713]
[1727151683235,227.46546176,146.28,146.17,9.45]
[1727151683438,4.1122,146.3,146.21,9.45]
[1727151683635,9.45,146.26,146.21,9.45]
[1727151683943,9.45,146.22,146.17,9.45]
[1727151684139,3.4206,146.18,146.17,9.45]
[1727151684535,9.45,146.21,146.16,9.45]
[1727151685339,3.4208,146.17,146.16,9.45]
[1727151685643,9.45,146.21,146.16,9.45]
[1727151686737,3.4208,146.18,146.16,9.45]
[1727151686938,9.45,146.21,146.16,9.45]
[1727151687945,9.45,146.21,146.17,9.45]
[1727151688340,3.4202,146.2,146.17,9.45]
[1727151688941,3.4202,146.2,146.17,12.8708]
[1727151692449,4.1122,146.3,146.19,9.45]
[1727151692748,4.1122,146.3,146.27,9.45]
[1727151693245,9.45,146.31,146.27,9.45]
[1727151693547,80.15966322,146.32,146.28,9.45]
[1727151693739,83.50610913,146.32,146.28,9.45]
[1727151694048,3.4179,146.3,146.27,9.45]
[1727151695540,3.418,146.29,146.27,9.45]
[1727151696245,83.50610913,146.32,146.28,9.45]
[1727151696545,3.46535778,146.37,146.31,9.45]
[1727151696754,3.9923,146.38,146.33,9.45]
[1727151696941,13.4423,146.38,146.34,9.45]
[1727151697545,13.4423,146.38,146.33,9.45]
[1727151698046,9.45,146.37,146.33,9.45]
[1727151699551,9.45,146.35,146.25,4.1737]
[1727151699742,9.45,146.35,146.3,9.45]
[1727151700743,3.4174,146.32,146.3,9.45]
[1727151702549,9.45,146.33,146.25,4.1737]
[1727151702849,9.45,146.32,146.28,9.45]
[1727151703238,9.45,146.32,146.25,4.1737]
[1727151703441,9.45,146.31,146.25,4.1737]
[1727151703645,9.45,146.31,146.26,9.45]
[1727151704254,3.4179,146.3,146.26,12.8687]
[1727151705154,3.4179,146.3,146.28,9.45]
[1727151706357,3.4176,146.31,146.29,9.45]
[1727151707958,3.4178,146.3,146.29,9.45]
[1727151708547,3.4178,146.3,146.27,9.45]
[1727151709057,3.4178,146.3,146.27,12.8684]
[1727151713858,3.4187,146.26,146.23,3.4193]
[1727151714162,3.4187,146.26,146.23,12.8693]
[1727151714958,3.4189,146.25,146.23,12.8693]
[1727151715662,3.4189,146.25,146.23,9.45]
[1727151716262,3.4188,146.26,146.23,12.8694]
[1727151716764,3.4189,146.25,146.23,12.8694]
[1727151717265,9.45,146.28,146.23,9.45]
[1727151718364,3.4192,146.24,146.23,9.45]
[1727151719765,9.45,146.28,146.23,9.45]
[1727151719968,9.45,146.29,146.23,9.45]
[1727151720570,3.4188,146.26,146.23,12.8693]
[1727151723868,3.4188,146.26,146.25,9.45]
[1727151727075,3.4188,146.26,146.23,3.4193]
[1727151727272,3.4188,146.26,146.23,12.8693]
[1727151728569,3.4188,146.26,146.24,3.4191]
[1727151728970,3.4186,146.27,146.25,9.45]
[1727151729170,3.4186,146.27,146.25,12.8689]
[1727151729377,3.4183,146.28,146.26,9.45]
[1727151729870,1.3731,146.33,146.26,12.8686]
[1727151729871,9.45,146.32,146.26,12.8686]
[1727151730071,3.4181,146.29,146.26,12.8686]
[1727151730271,3.4181,146.29,146.28,9.45]
[1727151730876,9.45,146.32,146.28,9.45]
[1727151730877,3.4178,146.3,146.28,9.45]
[1727151734476,3.417,146.34,146.31,3.4173]
[1727151734674,62.82685869,146.35,146.31,9.45]
[1727151735885,3.4173,146.32,146.31,9.45]
[1727151736471,62.82685869,146.35,146.29,3.418]
[1727151736676,9.45,146.33,146.28,9.45]
[1727151738571,3.4179,146.3,146.28,9.45]
[1727151739482,3.4179,146.3,146.28,12.8682]
[1727151739882,3.4176,146.31,146.29,9.45]
[1727151740984,3.4174,146.32,146.3,9.45]
[1727151742082,3.4174,146.32,146.3,12.8677]
[1727151742988,3.4171,146.33,146.31,3.4175]
[1727151743285,13.6395,146.38,146.33,9.45]
[1727151743474,3.4167,146.35,146.33,9.45]
[1727151743878,3.39328191,146.36,146.33,9.45]
[1727151744080,13.6395,146.38,146.33,9.45]
[1727151744277,3.4168,146.34,146.33,9.45]
[1727151744476,3.35771794,146.37,146.33,9.45]
[1727151744981,3.4167,146.35,146.33,9.45]
[1727151746981,3.4168,146.34,146.33,9.45]
[1727151747186,9.45,146.35,146.3,9.45]
[1727151747388,3.4172,146.33,146.32,9.45]
[1727151748079,3.4169,146.34,146.32,9.45]
[1727151750288,3.4171,146.33,146.32,9.45]
[1727151751795,3.4169,146.34,146.32,9.45]
[1727151751993,3.4169,146.34,146.33,9.45]
[1727151761996,3.36934226,146.36,146.29,3.4179]
[1727151761997,12.81934226,146.36,146.29,3.4179]
[1727151762198,9.45,146.34,146.26,4.1359]
[1727151762405,9.45,146.34,146.29,9.45]
[1727151762699,3.4174,146.32,146.3,9.45]
[1727151769701,3.4174,146.32,146.31,9.45]
[1727151769898,3.4171,146.33,146.31,9.45]
[1727151770107,3.4171,146.33,146.32,9.45]
[1727151771997,3.4169,146.34,146.32,9.45]
[1727151772205,13.6395,146.38,146.32,12.8673]
[1727151772399,13.6395,146.38,146.34,9.45]
[1727151773399,13.6395,146.38,146.33,9.45]
[1727151775008,3.4168,146.34,146.33,9.45]
[1727151775417,9.45,146.35,146.26,4.1359]
[1727151775712,4.1895,146.38,146.26,4.1359]
[1727151775713,9.45,146.34,146.26,4.1359]
[1727151775914,9.45,146.34,146.28,9.45]
[1727151776114,3.4177,146.31,146.28,12.8681]
[1727151776417,3.492315,146.35,146.3,9.45]
[1727151776617,3.4175,146.32,146.3,9.45]
[1727151777415,3.4172,146.33,146.3,12.8677]
[1727151783822,3.43078922,146.35,146.31,12.8674]
[1727151784835,3.4169,146.34,146.31,12.8674]
[1727151785024,3.43078922,146.35,146.31,12.8674]
[1727151785431,3.4169,146.34,146.31,12.8674]
[1727151786233,3.4171,146.33,146.31,12.8674]
[1727151790240,3.4173,146.32,146.26,4.1359]
[1727151790440,3.4173,146.32,146.31,9.45]
[1727151790641,12.88078922,146.35,146.31,9.45]
[1727151790842,3.4172,146.33,146.31,9.45]
[1727151791136,9.45,146.35,146.31,9.45]
[1727151791838,3.4173,146.32,146.31,9.45]
[1727151798840,3.4172,146.33,146.31,9.45]
[1727151802646,3.4169,146.34,146.31,12.8675]
[1727151802844,3.4169,146.34,146.26,4.1359]
[1727151802845,3.37531658,146.45,146.33,9.45]
[1727151803047,9.45,146.41,146.37,9.45]
[1727151803246,3.36775164,146.4,146.37,9.45]
[1727151803444,3.4161,146.38,146.37,9.45]
[1727151804146,3.4157,146.39,146.37,9.45]
[1727151804349,13.06344541,146.43,146.38,9.45]
[1727151804554,7.57682188,146.44,146.4,9.45]
[1727151804750,3.44502188,146.44,146.41,9.45]
[1727151804953,9.45,146.47,146.41,9.45]
[1727151805152,12.80920404,146.47,146.41,9.45]
[1727151805646,12.80920404,146.47,146.42,9.45]
[1727151806259,3.4141,146.46,146.42,9.45]
[1727151806456,13.05707761,146.48,146.34,96.21747835]
[1727151806457,22.50707761,146.48,146.34,96.21747835]
[1727151806655,3.4136,146.48,146.43,9.45]
[1727151806956,2.75,146.49,146.45,9.45]
[1727151807153,3.414,146.46,146.44,9.45]
[1727151807357,2.75,146.49,146.44,9.45]
[1727151807358,9.45,146.48,146.44,9.45]
[1727151808257,9.45,146.48,146.42,9.45]
[1727151808458,9.45,146.47,146.41,9.45]
[1727151808658,3.37592698,146.46,146.41,9.45]
[1727151809059,3.4145,146.44,146.41,9.45]
[1727151810456,3.4145,146.44,146.41,3.4151]
[1727151810650,12.2,146.49,146.43,9.45]
[1727151810853,12.2,146.49,146.44,9.45]
[1727151811254,3.4141,146.46,146.44,9.45]
[1727151811662,10.78,146.51,146.45,9.45]
[1727151811963,3.4137,146.48,146.47,9.45]
[1727151812860,3.4138,146.47,146.46,9.45]
[1727151814760,1.4078,146.53,146.47,3.4136]
[1727151814955,1.4078,146.53,146.49,9.45]
[1727151815155,10.8471,146.57,146.52,9.45]
[1727151815355,3.4123,146.54,146.52,9.45]
[1727151815855,3.412,146.55,146.52,9.45]
[1727151816056,3.39820907,146.56,146.52,9.45]
[1727151816257,10.8471,146.57,146.52,9.45]
[1727151816859,14.26648171,146.57,146.52,9.45]
[1727151817558,1.3971,146.57,146.47,4.0794]
[1727151817752,9.45,146.54,146.49,9.45]
[1727151817959,9.45,146.53,146.48,9.45]
[1727151818370,3.413,146.51,146.48,9.45]
[1727151818760,9.45,146.51,146.48,9.45]
[1727151819760,3.4133,146.49,146.48,9.45]
[1727151820965,9.45,146.5,146.44,3.4145]
[1727151821265,9.45,146.49,146.44,9.45]
[1727151822061,3.4141,146.46,146.44,9.45]
[1727151825264,3.4145,146.45,146.41,7.6004]
[1727151825469,2.6822,146.52,146.41,1.4093]
[1727151825470,9.45,146.46,146.41,1.4093]
[1727151825764,9.45,146.44,146.39,9.45]
[1727151825969,3.4152,146.42,146.39,9.45]
[1727151826763,3.4152,146.42,146.39,12.8656]
[1727151829464,3.4152,146.42,146.39,9.45]
[1727151829669,3.4152,146.41,146.39,9.45]
[1727151832167,9.45,146.44,146.4,9.45]
[1727151832168,3.415,146.42,146.4,9.45]
[1727151835474,9.45,146.44,146.39,9.45]
[1727151836883,3.4153,146.41,146.39,9.45]
[1727151842380,3.38365572,146.45,146.4,9.45]
[1727151842584,9.45,146.48,146.43,9.45]
[1727151842783,12.8213778,146.48,146.43,9.45]
[1727151842986,9.45,146.47,146.35,4.159]
[1727151843182,9.45,146.46,146.41,9.45]
[1727151843383,12.91876708,146.46,146.41,9.45]
[1727151843882,3.4145,146.44,146.41,12.865]
[1727151845488,12.91876708,146.46,146.41,9.45]
[1727151845987,3.4145,146.44,146.41,12.865]
[1727151846583,3.4148,146.43,146.41,9.45]
[1727151846785,3.4148,146.43,146.4,12.8654]
[1727151846986,3.46876708,146.46,146.38,3.4157]
[1727151846987,3.4152,146.41,146.38,3.4157]
[1727151847189,9.45,146.42,146.38,9.45]
[1727151847587,9.45,146.43,146.39,12.8657]
[1727151848184,3.4149,146.43,146.4,12.8652]
[1727151849088,3.4149,146.43,146.4,9.45]
[1727151849387,12.8649,146.43,146.39,12.8655]
[1727151849589,3.4149,146.43,146.4,9.45]
[1727151849894,3.4149,146.43,146.4,12.8653]
[1727151850786,9.45,146.44,146.41,12.8651]
[1727151850787,3.4145,146.44,146.41,12.8651]
[1727151851194,8.1439,146.53,146.42,9.45]
[1727151851391,9.45,146.48,146.42,9.45]
[1727151851594,3.4141,146.46,146.43,3.4146]
[1727151852885,12.8641,146.46,146.43,3.4146]
[1727151853085,16.35289322,146.46,146.43,3.4146]
[1727151853286,9.45,146.45,146.4,9.45]
[1727151853586,9.45,146.44,146.4,9.45]
[1727151854389,9.45,146.44,146.4,12.8653]
[1727151854390,3.4147,146.43,146.4,12.8653]
[1727151855985,3.4147,146.43,146.4,3.4153]
[1727151856391,3.415,146.42,146.4,3.4153]
[1727151857195,3.4148,146.43,146.4,3.4153]
[1727151857901,12.8648,146.43,146.4,3.4153]
[1727151860703,3.4152,146.41,146.37,9.45]
[1727151861100,3.4152,146.41,146.38,3.4157]
[1727151868303,12.865,146.42,146.39,3.4155]
[1727151868606,3.415,146.42,146.39,12.8655]
[1727151871406,12.865,146.42,146.39,3.4155]
[1727151871602,3.415,146.42,146.39,12.8655]
[1727151871810,9.45,146.44,146.4,9.45]
[1727151872108,9.45,146.45,146.41,9.45]
[1727151872401,3.4146,146.44,146.41,9.45]
[1727151873101,9.45,146.43,146.35,4.159]
[1727151873299,9.45,146.4,146.35,13.609]
[1727151873700,12.8656,146.4,146.37,3.416]
[1727151874404,3.4157,146.39,146.36,3.4163]
[1727151875699,12.8655,146.4,146.37,3.416]
[1727151882118,3.4157,146.39,146.36,3.4162]
[1727151882313,3.4157,146.39,146.35,12.2161]
[1727151882518,12.8656,146.4,146.37,3.4161]
[1727151883317,3.4157,146.39,146.36,3.4163]
[1727151883520,9.45,146.4,146.34,92.74236895]
[1727151883721,9.45,146.4,146.34,102.19236895]
[1727151884015,3.4158,146.39,146.36,3.4163]
[1727151896931,12.8658,146.39,146.36,3.4163]
[1727151898331,12.8658,146.39,146.34,92.74236895]
[1727151898332,3.4165,146.36,146.34,92.74236895]
[1727151898642,9.45,146.36,146.31,12.0834]
[1727151899033,12.8665,146.36,146.33,3.417]
[1727151899335,9.45,146.34,146.27,6.57904285]
[1727151899639,9.45,146.28,146.23,9.45]
[1727151899834,9.45,146.28,146.24,9.45]
[1727151901346,12.8682,146.28,146.24,12.869]
[1727151902340,28.7402,146.39,146.25,9.45]
[1727151902341,8.2202,146.39,146.25,9.45]
[1727151902543,9.45,146.31,146.27,9.45]
[1727151902740,3.4178,146.3,146.27,9.45]
[1727151902939,3.4178,146.3,146.26,3.4185]
[1727151903143,3.4178,146.3,146.26,12.8685]
[1727151904342,12.8678,146.3,146.26,12.8685]
[1727151908949,12.8681,146.29,146.26,3.4185]
[1727151909147,9.45,146.27,146.22,1.4218]
[1727151909343,6.8326,146.37,146.22,1.4218]
[1727151909344,9.45,146.26,146.22,1.4218]
[1727151910041,3.48711428,146.28,146.23,9.45]
[1727151910042,3.4185,146.27,146.23,9.45]
[1727151911243,3.4183,146.28,146.25,12.8689]
[1727151912040,3.4182,146.29,146.25,12.8689]
[1727151912849,3.4182,146.28,146.25,12.8689]
[1727151914351,3.41666062,146.31,146.25,9.45]
[1727151914558,9.45,146.32,146.28,9.45]
[1727151915254,3.4177,146.31,146.28,9.45]
[1727151915453,9.45,146.32,146.27,12.8683]
[1727151916758,3.4178,146.3,146.27,12.8683]
[1727151917543,3.4178,146.3,146.27,3.4183]
[1727151917751,3.4178,146.3,146.28,9.45]
[1727151920151,3.4176,146.31,146.28,12.8681]
[1727151920458,9.45,146.35,146.3,9.45]
[1727151920651,3.417,146.34,146.3,12.8676]
[1727151922449,3.417,146.34,146.31,3.4175]
[1727151925555,6.8303,146.42,146.32,9.45]
[1727151925755,9.45,146.37,146.32,9.45]
[1727151926462,3.4165,146.36,146.32,12.8671]
[1727151927258,3.4165,146.36,146.28,4.1145]
[1727151927259,3.4163,146.37,146.33,12.867]
[1727151927459,10.8388,146.39,146.34,9.45]
[1727151928359,3.4163,146.37,146.34,9.45]
[1727151928665,10.8388,146.39,146.34,9.45]
[1727151928866,3.417,146.34,146.3,3.4177]
[1727151929161,9.45,146.35,146.3,9.45]
[1727151929367,9.45,146.33,146.3,9.45]
[1727151929663,1.3618,146.38,146.28,2.7718]
[1727151929664,9.45,146.32,146.28,2.7718]
[1727151930055,12.8674,146.32,146.28,6.1899]
[1727151930258,12.8674,146.32,146.28,15.6399]
[1727151931460,3.4174,146.32,146.28,15.6399]
[1727151933667,9.45,146.32,146.28,1.3462]
[1727151934267,3.4176,146.31,146.28,1.3462]
[1727151934463,2.7461,146.38,146.28,10.7962]
[1727151934665,9.45,146.34,146.28,1.3462]
[1727151934866,3.4172,146.33,146.3,9.45]
[1727151935066,2.7461,146.38,146.28,1.3462]
[1727151935067,9.45,146.32,146.28,1.3462]
[1727151935769,12.8674,146.32,146.28,4.7643]
[1727151936173,12.8674,146.32,146.29,3.418]
[1727151936760,2.7461,146.38,146.28,1.3462]
[1727151936962,1.3618,146.38,146.31,9.45]
[1727151937362,9.45,146.37,146.32,9.45]
[1727151937563,3.4165,146.36,146.32,12.8671]
[1727151938069,9.45,146.37,146.32,12.8671]
[1727151938760,3.4166,146.35,146.32,12.8671]
[1727151940370,9.45,146.37,146.32,9.45]
[1727151941872,3.4164,146.36,146.32,12.8672]
[1727151943973,3.4159,146.38,146.34,9.45]
[1727151944181,3.4159,146.38,146.35,9.45]
[1727151944478,1.3888,146.39,146.35,9.45]
[1727151944667,3.4161,146.37,146.35,9.45]
[1727151946373,3.4161,146.37,146.34,3.4167]
[1727151946374,3.4161,146.37,146.34,12.8667]
[1727151949281,9.45,146.37,146.28,4.145]
[1727151949475,9.45,146.36,146.31,9.45]
[1727151950077,3.4168,146.34,146.31,12.8674]
[1727151950480,9.45,146.36,146.31,12.8674]
[1727151950779,9.45,146.35,146.31,12.8674]
[1727151950972,3.4169,146.34,146.31,12.8674]
[1727151951676,3.4171,146.33,146.31,12.8674]
[1727151951876,3.4171,146.33,146.31,9.45]
[1727151952073,3.4175,146.32,146.28,4.145]
[1727151952275,3.4175,146.32,146.29,9.45]
[1727151953174,3.4176,146.31,146.29,9.45]
[1727151953479,9.45,146.32,146.28,1.3462]
[1727151953678,9.45,146.32,146.27,12.8684]
[1727151954185,3.4179,146.3,146.27,9.45]
[1727151954374,9.45,146.32,146.27,9.45]
[1727151954684,3.4176,146.31,146.27,9.45]
[1727151954984,2.7997,146.39,146.28,12.8681]
[1727151955171,3.4173,146.32,146.28,12.8681]
[1727151955983,3.4173,146.32,146.29,3.418]
[1727151958577,9.45,146.33,146.28,9.45]
[1727151958578,3.4177,146.31,146.28,9.45]
[1727151958776,3.4177,146.31,146.27,12.8683]
[1727151958989,3.4177,146.31,146.27,3.4183]
[1727151959284,3.4177,146.31,146.24,3.9423]
[1727151959285,9.45,146.32,146.28,9.45]
[1727151959790,3.4177,146.31,146.28,9.45]
[1727151960384,3.4177,146.31,146.29,9.45]
[1727151961584,9.45,146.3,146.24,2.6283]
[1727151961784,9.45,146.28,146.24,12.0783]
[1727151961984,9.45,146.28,146.24,10.779]
[1727151962189,3.4185,146.27,146.24,14.198]
[1727151962391,9.45,146.28,146.24,10.779]
[1727151962594,9.45,146.28,146.24,14.198]
[1727151962595,12.8683,146.28,146.24,14.198]
[1727151963093,9.45,146.27,146.23,9.45]
[1727151963589,12.8685,146.27,146.23,12.8692]
[1727151963986,9.45,146.3,146.24,9.45]
[1727151964196,9.45,146.3,146.21,1.2976]
[1727151964384,9.45,146.3,146.25,9.45]
[1727151964694,3.4181,146.29,146.25,12.8688]
[1727151965392,12.82175102,146.3,146.25,12.8688]
[1727151965891,12.82175102,146.3,146.25,3.4188]
[1727151966793,3.4182,146.28,146.25,3.4188]
[1727151967296,3.4178,146.3,146.27,9.45]
[1727151967783,3.4178,146.3,146.26,12.8686]
[1727151968390,3.418,146.29,146.26,12.8686]
[1727151968691,9.45,146.31,146.26,12.8686]
[1727151968892,3.4179,146.3,146.26,12.8686]
[1727151969790,3.418,146.29,146.26,12.8686]
[1727151969991,3.418,146.29,146.26,9.45]
[1727151970289,12.868,146.29,146.25,12.8687]
[1727151972997,12.868,146.29,146.26,3.4187]
[1727151973398,3.4178,146.3,146.26,9.45]
[1727151973587,3.4178,146.3,146.27,3.4184]
[1727151987298,12.8678,146.3,146.27,3.4184]
[1727151987693,3.48701077,146.32,146.26,3.4186]
[1727151987694,12.8681,146.29,146.26,3.4186]
[1727151988002,9.45,146.28,146.26,3.4186]
[1727151988301,12.8681,146.29,146.26,3.4186]
[1727151988696,3.4183,146.28,146.25,3.4188]
[1727151989600,9.45,146.29,146.26,3.4187]
[1727151989601,12.8681,146.29,146.26,3.4187]
[1727151990390,12.8681,146.29,146.21,1.2976]
[1727151990391,12.8679,146.3,146.25,9.45]
[1727151991093,12.8679,146.3,146.27,3.4183]
[1727151997505,1.3141,146.36,146.28,9.45]
[1727151997709,1.3141,146.36,146.22,6.59914914]
[1727151997710,9.45,146.33,146.29,9.45]
[1727151998006,9.45,146.36,146.32,9.45]
[1727151998208,9.45,146.37,146.32,9.45]
[1727151998913,12.8663,146.37,146.33,3.417]
[1727152001100,3.4159,146.38,146.33,9.45]
[1727152001410,3.40147682,146.4,146.34,9.45]
[1727152001411,10.8388,146.39,146.34,9.45]
[1727152001607,10.8388,146.39,146.36,3.4163]
[1727152002206,14.2545,146.39,146.36,3.4163]
[1727152003107,9.45,146.38,146.36,3.4163]
[1727152003808,12.8659,146.38,146.35,3.4165]
[1727152006413,9.45,146.38,146.34,9.45]
[1727152008014,9.45,146.38,146.36,3.4162]
[1727152008610,12.8654,146.4,146.37,3.4161]
[1727152008813,12.80007519,146.41,146.36,9.45]
[1727152009012,9.45,146.41,146.36,9.45]
[1727152009216,12.8652,146.41,146.39,3.4156]
[1727152009511,16.36124276,146.41,146.39,3.4156]
[1727152010417,12.8652,146.41,146.39,3.4156]
[1727152011610,1.4113,146.44,146.42,3.4149]
[1727152011905,4.76068506,146.44,146.41,9.45]
[1727152012104,1.4113,146.44,146.41,9.45]
[1727152012309,1.4113,146.44,146.42,3.4148]
[1727152012509,3.35963618,146.44,146.42,3.4148]
[1727152012911,3.4143,146.45,146.42,3.4148]
[1727152013112,3.46932325,146.44,146.42,3.4148]
[1727152014818,6.88382325,146.44,146.42,3.4148]
[1727152015020,9.45,146.43,146.33,4.0841]
[1727152015216,9.45,146.39,146.35,9.45]
[1727152015414,9.45,146.39,146.36,3.4162]
[1727152015816,9.45,146.39,146.35,9.45]
[1727152016923,9.45,146.39,146.37,3.416]
[1727152018814,9.45,146.39,146.35,9.45]
[1727152020417,9.45,146.39,146.37,3.416]
[1727152023322,9.45,146.39,146.38,3.4159]
[1727152025124,3.4153,146.41,146.38,3.4159]
[1727152025428,9.45,146.4,146.38,3.4159]
[1727152026025,9.45,146.4,146.37,3.416]
[1727152029734,9.45,146.4,146.36,9.45]
[1727152030531,9.45,146.4,146.38,3.4157]
[1727152031730,9.45,146.4,146.36,9.45]
[1727152032036,9.45,146.4,146.39,3.4157]
[1727152033233,12.8651,146.42,146.39,3.4157]
[1727152034240,9.45,146.41,146.38,3.4158]
[1727152038242,12.8652,146.41,146.38,3.4158]
[1727152039643,9.45,146.39,146.33,4.0841]
[1727152039832,9.45,146.37,146.33,2.7356]
[1727152040034,9.45,146.37,146.27,10.28423242]
[1727152040035,9.45,146.36,146.28,1.3087]
[1727152040229,9.45,146.36,146.33,3.417]
[1727152040230,12.8665,146.36,146.33,3.417]
[1727152040549,9.45,146.37,146.32,9.45]
[1727152040842,9.45,146.37,146.34,3.4167]
[1727152041534,9.45,146.37,146.32,9.45]
[1727152042937,12.8662,146.37,146.34,3.4168]
[1727152046043,9.45,146.35,146.28,4.1626]
[1727152046243,9.45,146.33,146.29,9.45]
[1727152046442,9.45,146.33,146.31,3.4175]
[1727152046640,12.8667,146.35,146.31,3.4175]
[1727152049250,9.45,146.32,146.28,2.8539]
[1727152049444,9.45,146.32,146.28,1.4212]
[1727152049639,9.45,146.33,146.28,10.8712]
[1727152049847,9.45,146.33,146.3,3.4176]
[1727152051843,12.8664,146.36,146.31,9.45]
[1727152052043,16.22537435,146.36,146.31,9.45]
[1727152052538,3.4166,146.35,146.32,3.4172]
[1727152058448,12.8666,146.35,146.31,12.8674]
[1727152058649,9.45,146.33,146.29,10.7703]
[1727152058852,9.45,146.32,146.28,1.4212]
[1727152059052,9.45,146.31,146.28,1.4212]
[1727152059356,9.45,146.31,146.26,9.45]
[1727152060854,12.8676,146.31,146.28,3.4181]